bitfinex/quotes_BTCUSD_20250412
["timestamp","ask_amount","ask_price","bid_price","bid_amount"]
[1744456504579,0.0004219,83474.0,83473.0,0.239598]
[1744456504762,0.0004219,83474.0,83473.0,0.36283524]
[1744456505022,0.00316594,83474.0,83473.0,0.36043954]
[1744456505232,0.00056206,83474.0,83473.0,0.36792495]
[1744456505656,0.00056206,83474.0,83473.0,0.37166792]
[1744456507505,0.00156206,83474.0,83473.0,0.37166792]
[1744456507861,0.00056206,83474.0,83473.0,0.37166792]
[1744456509536,0.00316594,83474.0,83473.0,0.37166792]
[1744456509720,0.00056206,83474.0,83473.0,0.37166792]
[1744456509922,0.00316594,83474.0,83473.0,0.37166792]
[1744456510226,0.00316594,83474.0,83473.0,0.36418251]
[1744456512974,0.00316594,83474.0,83473.0,0.36043954]
[1744456514986,0.00316594,83474.0,83473.0,0.12084154]
[1744456541148,0.00056206,83474.0,83473.0,0.12084154]
[1744456550254,0.15056206,83474.0,83473.0,0.12084154]
[1744456551250,0.17056206,83474.0,83473.0,0.12084154]
[1744456555472,0.00056206,83474.0,83473.0,0.12084154]
[1744456561062,0.239609,83469.0,83461.0,0.239631]
[1744456561303,0.01198,83469.0,83466.0,0.13528]
[1744456561517,0.01198,83469.0,83466.0,0.36045954]
[1744456561751,0.01198,83469.0,83466.0,0.37243954]
[1744456564849,0.02198,83469.0,83466.0,0.37243954]
[1744456569109,0.02198,83469.0,83466.0,0.13282154]
[1744456571551,0.00056206,83474.0,83471.0,0.01198]
[1744456571765,0.00056206,83474.0,83472.0,0.36044054]
[1744456572176,0.00056206,83474.0,83472.0,0.12084154]
[1744456572618,0.00256206,83474.0,83472.0,0.12084154]
[1744456573229,0.00056206,83474.0,83472.0,0.12084154]
[1744456573427,0.00256206,83474.0,83472.0,0.12084154]
[1744456574469,0.00456206,83474.0,83472.0,0.12084154]
[1744456576191,0.17456206,83474.0,83472.0,0.12084154]
[1744456577952,0.17456206,83474.0,83473.0,0.239598]
[1744456578158,0.17456206,83474.0,83473.0,0.36043954]
[1744456578732,0.17256206,83474.0,83473.0,0.36043954]
[1744456578936,0.17056206,83474.0,83473.0,0.36043954]
[1744456579152,0.17556206,83474.0,83473.0,0.12084154]
[1744456579352,0.41515706,83474.0,83473.0,0.12084154]
[1744456579561,0.239605,83471.0,83469.0,0.13528]
[1744456579767,0.421585,83471.0,83467.0,0.01198]
[1744456579961,0.01198,83470.0,83467.0,0.01198]
[1744456580209,0.01198,83471.0,83468.0,0.01198]
[1744456580436,0.19,83471.0,83470.0,0.01198]
[1744456580631,0.011979,83473.0,83470.0,0.01198]
[1744456580848,0.001,83471.0,83470.0,0.01198]
[1744456581067,0.011979,83473.0,83470.0,0.01198]
[1744456581214,0.001,83471.0,83470.0,0.01198]
[1744456581774,0.002,83471.0,83470.0,0.01198]
[1744456582118,0.001,83473.0,83471.0,0.239604]
[1744456582318,0.001,83471.0,83470.0,0.01198]
[1744456582526,0.002,83471.0,83470.0,0.01198]
[1744456582990,0.001,83471.0,83470.0,0.01198]
[1744456584878,0.002,83471.0,83470.0,0.01198]
[1744456585890,0.002,83471.0,83470.0,0.13282154]
[1744456586743,0.001,83471.0,83470.0,0.13282154]
[1744456586975,0.002,83471.0,83470.0,0.13282154]
[1744456587424,0.001,83471.0,83470.0,0.13282154]
[1744456587647,0.002,83471.0,83470.0,0.13282154]
[1744456610412,0.172,83471.0,83467.0,0.01198]
[1744456610632,0.172,83471.0,83468.0,0.01198]
[1744456610843,0.172,83471.0,83467.0,0.01198]
[1744456611050,0.172,83471.0,83468.0,0.251591]
[1744456611175,0.171,83471.0,83469.0,0.239608]
[1744456611378,0.17,83471.0,83469.0,0.239608]
[1744456612192,0.00056206,83474.0,83471.0,0.251582]
[1744456612400,0.17056206,83474.0,83471.0,0.251582]
[1744456613036,0.17056206,83474.0,83472.0,0.239598]
[1744456613857,0.17156206,83474.0,83472.0,0.239598]
[1744456614176,0.17156206,83474.0,83471.0,0.251582]
[1744456614177,0.17056206,83474.0,83471.0,0.251582]
[1744456614379,0.17056206,83474.0,83471.0,0.01198]
[1744456614553,0.17256206,83474.0,83471.0,0.01198]
[1744456614753,0.17456206,83474.0,83471.0,0.01198]
[1744456615863,0.17256206,83474.0,83471.0,0.01198]
[1744456616246,0.17156206,83474.0,83471.0,0.01198]
[1744456616471,0.17256206,83474.0,83471.0,0.01198]
[1744456617109,0.41215906,83474.0,83471.0,0.01198]
[1744456617312,0.00256206,83474.0,83471.0,0.01198]
[1744456617607,0.18454106,83474.0,83471.0,0.01198]
[1744456617809,0.011979,83473.0,83469.0,0.01198]
[1744456618076,0.021979,83473.0,83470.0,0.37242854]
[1744456619394,0.022979,83473.0,83470.0,0.37242854]
[1744456619507,0.023979,83473.0,83470.0,0.37242854]
[1744456619709,0.022979,83473.0,83470.0,0.37242854]
[1744456620157,0.024979,83473.0,83470.0,0.37242854]
[1744456621179,0.013,83473.0,83470.0,0.37242854]
[1744456624516,0.01198,83470.0,83463.0,0.13528]
[1744456624761,0.421587,83470.0,83466.0,0.01198]
[1744456624903,0.00414767,83468.0,83464.0,0.12084154]
[1744456625337,0.00414767,83468.0,83464.0,0.37244354]
[1744456625518,0.00414767,83468.0,83465.0,0.011981]
[1744456627066,0.00414767,83468.0,83466.0,0.239618]
[1744456629338,0.00414767,83468.0,83466.0,0.240618]
[1744456630458,0.00414767,83468.0,83467.0,0.12323751]
[1744456630669,0.00414767,83468.0,83467.0,0.12084154]
[1744456639414,0.00056206,83474.0,83471.0,0.01198]
[1744456639618,0.18056206,83474.0,83471.0,0.251581]
[1744456640028,0.18056206,83474.0,83472.0,0.36044054]
[1744456640673,0.00414767,83473.0,83472.0,0.36044054]
[1744456640884,0.15414767,83473.0,83472.0,0.36044054]
[1744456641531,0.00414767,83473.0,83472.0,0.36044054]
[1744456641754,0.00614767,83473.0,83472.0,0.36044054]
[1744456642841,0.00814767,83473.0,83472.0,0.36044054]
[1744456643490,6.7e-07,83473.0,83472.0,1.12318139]
[1744456643633,6.7e-07,83473.0,83472.0,1.25842139]
[1744456643839,6.7e-07,83473.0,83472.0,1.28985388]
[1744456644225,6.7e-07,83473.0,83472.0,1.25842139]
[1744456644777,0.00056206,83474.0,83472.0,1.26042139]
[1744456645023,0.00056206,83474.0,83473.0,0.47538239]
[1744456646360,0.00056206,83474.0,83473.0,0.48038239]
[1744456646814,0.00056206,83474.0,83473.0,0.88858239]
[1744456647653,0.00056206,83474.0,83473.0,0.89158239]
[1744456650600,0.00056206,83474.0,83473.0,1.01228154]
[1744456651023,0.00056206,83474.0,83473.0,1.02682239]
[1744456651649,0.00056206,83474.0,83473.0,1.02182239]
[1744456652063,0.00056206,83474.0,83473.0,1.02382239]
[1744456653284,0.00056206,83474.0,83473.0,0.89058239]
[1744456653560,0.00056206,83474.0,83473.0,0.87604154]
[1744456653890,0.00056206,83474.0,83473.0,1.25087954]
[1744456654193,0.00056206,83474.0,83473.0,1.00928154]
[1744456654637,0.00056206,83474.0,83473.0,1.24587954]
[1744456655116,0.00056206,83474.0,83473.0,1.11363954]
[1744456655351,0.00056206,83474.0,83473.0,1.10863954]
[1744456655484,0.00056206,83474.0,83473.0,1.11263954]
[1744456655738,0.00056206,83474.0,83473.0,0.87304154]
[1744456655912,0.24015706,83474.0,83473.0,0.004]
[1744456656112,0.25015706,83474.0,83473.0,0.004]
[1744456656447,0.25015706,83474.0,83473.0,0.006]
[1744456656646,0.25015706,83474.0,83473.0,0.003]
[1744456657058,0.25015706,83474.0,83473.0,0.001]
[1744456657631,0.26213606,83474.0,83469.0,0.251587]
[1744456657835,0.26213606,83474.0,83469.0,0.37242854]
[1744456659222,0.26213606,83474.0,83469.0,0.37442854]
[1744456660005,0.26213606,83474.0,83470.0,0.01198]
[1744456660214,0.011979,83473.0,83470.0,0.251587]
[1744456660364,0.021979,83473.0,83470.0,0.01198]
[1744456661588,0.01,83473.0,83471.0,0.01198]
[1744456661809,0.01,83473.0,83471.0,0.251581]
[1744456662056,0.00056206,83474.0,83473.0,0.239598]
[1744456663001,0.00056206,83474.0,83471.0,0.251581]
[1744456664657,0.17056206,83474.0,83471.0,0.251581]
[1744456665493,0.17056206,83474.0,83472.0,0.239599]
[1744456672001,0.00056206,83474.0,83472.0,0.239599]
[1744456677904,0.00056206,83474.0,83472.0,0.36044054]
[1744456678093,0.00056206,83474.0,83473.0,0.12084154]
[1744456679004,0.00056206,83474.0,83473.0,0.12323728]
[1744456679205,0.00056206,83474.0,83473.0,0.12084154]
[1744456679934,0.00056206,83474.0,83473.0,0.47777798]
[1744456680140,0.00056206,83474.0,83473.0,0.47538239]
[1744456680502,0.00056206,83474.0,83473.0,0.47638239]
[1744456680903,0.00056206,83474.0,83473.0,0.47838239]
[1744456681103,0.00056206,83474.0,83473.0,0.47638239]
[1744456681558,0.00056206,83474.0,83473.0,0.47938239]
[1744456681967,0.00056206,83474.0,83473.0,0.47838239]
[1744456682170,0.00056206,83474.0,83473.0,0.88758239]
[1744456682580,6e-08,83474.0,83473.0,0.88758239]
[1744456683287,6e-08,83474.0,83473.0,0.88658239]
[1744456683722,6e-08,83474.0,83473.0,0.88558239]
[1744456683856,6e-08,83474.0,83473.0,0.88858239]
[1744456684160,6e-08,83474.0,83473.0,0.88558239]
[1744456684600,6e-08,83474.0,83473.0,0.88858239]
[1744456685327,6e-07,83482.0,83480.0,0.35454085]
[1744456685542,6e-07,83482.0,83481.0,2.35827224]
[1744456685709,6e-07,83482.0,83481.0,2.35587739]
[1744456686288,6e-07,83482.0,83481.0,2.40407739]
[1744456686696,6e-07,83482.0,83481.0,2.53927739]
[1744456687312,6e-07,83482.0,83481.0,2.54127739]
[1744456687923,6e-07,83482.0,83481.0,2.54327739]
[1744456694596,6e-07,83482.0,83481.0,2.49507739]
[1744456695493,6e-07,83482.0,83481.0,2.35987739]
[1744456695696,6e-07,83482.0,83481.0,2.49507739]
[1744456703858,6e-07,83482.0,83481.0,2.49503739]
[1744456712906,6e-07,83482.0,83481.0,2.54293739]
[1744456713109,6e-07,83482.0,83481.0,2.58983739]
[1744456714339,6e-07,83482.0,83481.0,2.45467739]
[1744456714543,6e-07,83482.0,83481.0,2.58983739]
[1744456717325,6e-07,83482.0,83481.0,2.62130753]
[1744456717856,6e-07,83482.0,83481.0,2.54193739]
[1744456718294,6e-07,83482.0,83481.0,2.49503739]
[1744456719178,6e-07,83482.0,83481.0,2.52651325]
[1744456719403,6e-07,83482.0,83481.0,2.49503739]
[1744456721119,6e-07,83482.0,83481.0,2.52651659]
[1744456721606,6e-07,83482.0,83481.0,2.49503739]
[1744456724276,6e-07,83482.0,83481.0,2.52650173]
[1744456729789,0.000422,83488.0,83486.0,0.59410185]
[1744456730044,0.000422,83488.0,83486.0,0.71494339]
[1744456730930,0.000422,83488.0,83486.0,0.71694339]
[1744456731133,0.000422,83488.0,83486.0,0.71894339]
[1744456731858,0.000422,83488.0,83486.0,1.12714339]
[1744456734146,0.000422,83488.0,83486.0,1.26230339]
[1744456750880,3e-07,83507.0,83506.0,0.239503]
[1744456751078,0.00196,83509.0,83508.0,0.579498]
[1744456751292,0.00046739,83509.0,83508.0,0.71488039]
[1744456751693,3.9e-07,83509.0,83508.0,0.71488039]
[1744456752259,3.9e-07,83509.0,83508.0,0.72998263]
[1744456754159,3.9e-07,83509.0,83508.0,0.73885304]
[1744456754569,0.0004219,83543.0,83520.0,0.59400385]
[1744456754779,0.000562,83521.0,83520.0,0.84996539]
[1744456755625,0.0004219,83543.0,83538.0,0.59395285]
[1744456755829,0.0004219,83543.0,83538.0,0.71479439]
[1744456756388,0.0004219,83543.0,83538.0,0.74578841]
[1744456757609,0.0004219,83543.0,83538.0,0.71479439]
[1744456757986,0.003,83539.0,83538.0,0.71479439]
[1744456758187,0.002,83539.0,83538.0,0.71479439]
[1744456758391,0.002,83539.0,83538.0,0.71579439]
[1744456759652,0.002,83539.0,83538.0,0.71679439]
[1744456761133,0.002,83539.0,83538.0,1.12499439]
[1744456763652,0.002,83539.0,83538.0,1.26007439]
[1744456772377,0.002,83539.0,83538.0,0.85187439]
[1744456777614,0.002,83539.0,83538.0,0.71679439]
[1744456777843,0.002,83539.0,83538.0,0.85183439]
[1744456778621,0.02,83562.0,83559.0,0.239351]
[1744456778858,0.02,83562.0,83560.0,0.35454085]
[1744456779093,0.02014005,83562.0,83561.0,0.71712148]
[1744456779329,0.02014005,83562.0,83561.0,0.71472839]
[1744456780269,0.02014005,83562.0,83561.0,0.71572839]
[1744456780475,0.02014005,83562.0,83561.0,0.71672839]
[1744456780792,0.02014005,83562.0,83561.0,0.72867808]
[1744456784473,0.02014005,83562.0,83561.0,1.13687808]
[1744456786714,0.02014005,83562.0,83561.0,0.72867808]
[1744456801244,0.02014005,83562.0,83561.0,0.86503808]
[1744456805134,0.02014005,83562.0,83561.0,1.27323808]
[1744456808969,0.02014005,83562.0,83561.0,0.86503808]
[1744456815353,0.02014005,83562.0,83561.0,0.85308839]
[1744456818931,0.02014005,83562.0,83561.0,0.25920154]
[1744456819131,0.19014005,83562.0,83561.0,0.002]
[1744456819331,0.19408373,83562.0,83561.0,0.002]
[1744456819711,0.19408373,83562.0,83561.0,0.001]
[1744456819935,0.21648006,83562.0,83561.0,0.001]
[1744456820137,0.21648006,83562.0,83561.0,0.002]
[1744456820523,0.19408373,83562.0,83561.0,0.002]
[1744456820913,0.19408373,83562.0,83561.0,0.001]
[1744456826008,0.02408373,83562.0,83561.0,0.001]
[1744456829292,0.02014005,83562.0,83561.0,0.001]
[1744456831304,0.02318936,83562.0,83561.0,0.001]
[1744456843798,0.17318936,83562.0,83561.0,0.001]
[1744456844794,0.17318936,83562.0,83555.0,0.0405]
[1744456844795,0.011967,83558.0,83555.0,0.0405]
[1744456845011,0.239357,83557.0,83555.0,0.0405]
[1744456845240,0.41187034,83557.0,83555.0,0.0405]
[1744456846319,0.239432,83531.0,83530.0,0.22721991]
[1744456846530,0.239432,83531.0,83530.0,0.09093991]
[1744456846956,0.24193205,83531.0,83530.0,0.09093991]
[1744456847421,0.39193205,83531.0,83530.0,0.09093991]
[1744456847664,0.39197871,83531.0,83530.0,0.09293991]
[1744456848111,0.39197871,83531.0,83530.0,0.09393991]
[1744456848530,0.39197871,83531.0,83530.0,0.09493991]
[1744456848737,0.39197871,83531.0,83530.0,0.09693991]
[1744456848914,0.39197871,83531.0,83530.0,0.003715]
[1744456849665,0.39197871,83531.0,83530.0,0.002715]
[1744456850030,0.39297871,83531.0,83530.0,0.002715]
[1744456850230,0.39497871,83531.0,83530.0,0.002715]
[1744456850436,0.39397871,83531.0,83530.0,0.000715]
[1744456850650,0.39997871,83531.0,83530.0,0.000715]
[1744456850852,0.40197871,83531.0,83530.0,0.000715]
[1744456854550,0.39997871,83531.0,83530.0,0.000715]
[1744456855575,0.40297871,83531.0,83530.0,0.000715]
[1744456856694,0.39997871,83531.0,83530.0,0.000715]
[1744456857063,0.40297871,83531.0,83530.0,0.000715]
[1744456862625,0.39997871,83531.0,83530.0,0.000715]
[1744456863031,0.39597871,83531.0,83530.0,0.000715]
[1744456863405,0.40197871,83531.0,83530.0,0.000715]
[1744456864014,0.239443,83527.0,83503.0,0.1368]
[1744456864212,0.239443,83527.0,83497.0,0.011976]
[1744456864213,0.409443,83527.0,83501.0,0.011975]
[1744456864419,0.409443,83527.0,83504.0,0.239507]
[1744456864666,0.409443,83527.0,83503.0,0.251485]
[1744456864874,0.546243,83527.0,83504.0,0.239507]
[1744456865075,0.546243,83527.0,83504.0,0.011975]
[1744456865602,0.546243,83527.0,83504.0,0.251483]
[1744456865803,0.546243,83527.0,83505.0,0.011975]
[1744456866381,0.551243,83527.0,83526.0,0.0018436]
[1744456866552,0.553243,83527.0,83526.0,0.0018436]
[1744456866965,0.551243,83527.0,83526.0,0.0018436]
[1744456867422,0.554243,83527.0,83526.0,0.0018436]
[1744456868680,0.417443,83527.0,83526.0,0.0018436]
[1744456874742,0.178,83527.0,83526.0,0.0018436]
[1744456875531,0.175,83527.0,83526.0,0.0018436]
[1744456875753,0.414443,83527.0,83526.0,0.0018436]
[1744456875946,0.416443,83527.0,83526.0,0.0018436]
[1744456876145,0.411443,83527.0,83526.0,0.0008436]
[1744456876690,0.414443,83527.0,83526.0,0.0008436]
[1744456904233,0.175,83527.0,83526.0,0.0008436]
[1744456941099,0.19743158,83527.0,83526.0,0.0008436]
[1744456951481,0.175,83527.0,83526.0,0.0008436]
[1744456964795,0.2226,83527.0,83526.0,0.0008436]
[1744456966545,0.175,83527.0,83526.0,0.0008436]
[1744456989991,0.1751,83527.0,83526.0,0.0008436]
[1744457041637,0.19750717,83527.0,83526.0,0.0008436]
[1744457045356,0.1751,83527.0,83526.0,0.0008436]
[1744457046541,0.19751819,83527.0,83526.0,0.0008436]
[1744457049611,0.1751,83527.0,83526.0,0.0008436]
[1744457057208,0.5939,83527.0,83526.0,0.0008436]
[1744457059933,0.61633802,83527.0,83526.0,0.0008436]
[1744457060785,0.5939,83527.0,83526.0,0.0008436]
[1744457063396,0.61633931,83527.0,83526.0,0.0008436]
[1744457064415,0.61633929,83527.0,83526.0,0.0008436]
[1744457077653,0.5939,83527.0,83526.0,0.0008436]
[1744457080759,0.1751,83527.0,83526.0,0.0008436]
[1744457141891,0.31022,83527.0,83526.0,0.0008436]
[1744457171476,0.1751,83527.0,83526.0,0.0008436]
[1744457192683,0.1651,83527.0,83526.0,0.0008436]
[1744457211304,0.15832273,83527.0,83526.0,0.0008436]
[1744457221395,0.20402273,83527.0,83526.0,0.0008436]
[1744457223291,0.15832273,83527.0,83526.0,0.0008436]
[1744457228829,0.18075589,83527.0,83526.0,0.0008436]
[1744457230511,0.15832273,83527.0,83526.0,0.0008436]
[1744457238919,0.18075536,83527.0,83526.0,0.0008436]
[1744457250569,0.15832273,83527.0,83526.0,0.0008436]
[1744457251773,0.18075828,83527.0,83526.0,0.0008436]
[1744457259939,0.15832273,83527.0,83526.0,0.0008436]
[1744457293986,0.20802273,83527.0,83526.0,0.0008436]
[1744457296246,0.34298273,83527.0,83526.0,0.0008436]
[1744457301306,0.29328273,83527.0,83526.0,0.0008436]
[1744457302813,0.15832273,83527.0,83526.0,0.0008436]
[1744457303051,0.29328273,83527.0,83526.0,0.0008436]
[1744457331011,0.33888273,83527.0,83526.0,0.0008436]
[1744457331337,0.99272031,83527.0,83526.0,6e-07]
[1744457331581,1.34826116,83527.0,83526.0,6e-07]
[1744457331786,1.43182224,83527.0,83526.0,6e-07]
[1744457331958,0.239529,83497.0,83496.0,0.0008438]
[1744457332165,0.39785173,83497.0,83496.0,0.0008438]
[1744457333342,0.39785173,83497.0,83496.0,0.00131119]
[1744457333549,0.39985173,83497.0,83496.0,0.00131119]
[1744457334707,0.40085173,83497.0,83496.0,0.00131119]
[1744457347170,0.16132273,83497.0,83496.0,0.04961119]
[1744457354398,0.003,83497.0,83496.0,0.04961119]
[1744457355866,0.003,83497.0,83496.0,0.21925273]
[1744457356102,0.003,83497.0,83496.0,0.22164776]
[1744457356966,0.002,83497.0,83496.0,0.22164776]
[1744457357424,0.002,83497.0,83496.0,0.22164775]
[1744457357922,0.011974,83510.0,83507.0,0.011975]
[1744457358095,0.091974,83510.0,83507.0,0.011975]
[1744457358892,0.08,83510.0,83507.0,0.011975]
[1744457359844,0.083,83510.0,83507.0,0.011975]
[1744457360233,0.085,83510.0,83507.0,0.011975]
[1744457360607,0.085,83510.0,83508.0,0.239498]
[1744457361354,0.085,83510.0,83509.0,0.0452]
[1744457361548,0.002,83510.0,83509.0,0.0452]
[1744457361752,0.005,83510.0,83509.0,0.0452]
[1744457361951,0.003,83510.0,83509.0,0.0452]
[1744457362410,0.005,83510.0,83509.0,0.0452]
[1744457362592,0.002,83510.0,83509.0,0.0452]
[1744457363111,0.006,83510.0,83509.0,0.0452]
[1744457363308,0.004,83510.0,83509.0,0.0452]
[1744457363552,0.004,83510.0,83509.0,0.284695]
[1744457363700,0.007,83510.0,83509.0,0.16604154]
[1744457367845,0.00120069,85100.0,83509.0,0.16604154]
[1744457368191,0.00120069,85100.0,83548.0,0.011969]
[1744457368192,0.0123879,83566.0,83548.0,0.011969]
[1744457368410,0.0004219,83566.0,83551.0,0.34]
[1744457368587,0.400422,83561.0,83550.0,0.34]
[1744457368889,0.400422,83561.0,83550.0,0.70021554]
[1744457369092,0.000422,83561.0,83557.0,0.011967]
[1744457369495,0.4,83558.0,83557.0,0.011967]
[1744457369909,0.4,83558.0,83557.0,0.251323]
[1744457370554,0.44,83558.0,83557.0,0.251323]
[1744457370780,0.4,83558.0,83557.0,0.251323]
[1744457370955,0.48,83558.0,83557.0,0.251323]
[1744457371565,0.481,83558.0,83557.0,0.251323]
[1744457372087,0.483,83558.0,83557.0,0.251323]
[1744457373376,0.48643893,83558.0,83557.0,0.251323]
[1744457385563,0.49643893,83558.0,83557.0,0.251323]
[1744457397824,0.011967,83557.0,83546.0,0.011969]
[1744457398047,0.011968,83555.0,83541.0,0.01197]
[1744457398227,0.17,83555.0,83546.0,0.011969]
[1744457398572,0.17,83555.0,83544.0,0.011969]
[1744457398573,0.4,83547.0,83544.0,0.011969]
[1744457398719,0.08,83547.0,83544.0,0.011969]
[1744457398974,0.00355713,83546.0,83545.0,0.011969]
[1744457399148,0.10355713,83546.0,83543.0,0.011969]
[1744457399500,0.50355713,83546.0,83543.0,0.011969]
[1744457399714,0.10355713,83546.0,83543.0,0.011969]
[1744457400025,0.4,83544.0,83543.0,0.011969]
[1744457400384,0.4,83544.0,83543.0,0.012969]
[1744457400787,0.4,83544.0,83543.0,0.015969]
[1744457401019,0.4,83544.0,83543.0,0.012969]
[1744457401317,0.4,83544.0,83543.0,0.015969]
[1744457401618,0.4,83544.0,83543.0,0.014969]
[1744457401850,0.4,83544.0,83543.0,0.003]
[1744457401851,0.719394,83544.0,83543.0,0.003]
[1744457402057,0.815694,83544.0,83543.0,0.004]
[1744457402812,0.94592349,83544.0,83543.0,0.003]
[1744457403187,0.011972,83522.0,83518.0,0.011973]
[1744457403392,0.101972,83522.0,83518.0,0.011973]
[1744457403737,0.101972,83522.0,83516.0,0.0128166]
[1744457403738,0.011973,83521.0,83516.0,0.0128166]
[1744457403886,0.131973,83521.0,83516.0,0.0128166]
[1744457404128,0.4,83517.0,83516.0,0.0008436]
[1744457404309,0.49,83517.0,83516.0,0.0008436]
[1744457404510,0.49004665,83517.0,83516.0,0.0008436]
[1744457404821,0.09004665,83517.0,83516.0,0.0008436]
[1744457405000,0.08704665,83517.0,83516.0,0.0008436]
[1744457405710,0.48704665,83517.0,83516.0,0.0008436]
[1744457405929,0.48704665,83517.0,83516.0,0.0018436]
[1744457406332,0.48704665,83517.0,83516.0,0.0008436]
[1744457406450,0.48804665,83517.0,83516.0,0.0068436]
[1744457406696,0.48704665,83517.0,83516.0,0.0008436]
[1744457407124,0.48804665,83517.0,83516.0,0.0008436]
[1744457429827,0.65688819,83517.0,83516.0,0.0008436]
[1744457430159,0.70488819,83517.0,83516.0,0.0008436]
[1744457430385,1.04488819,83517.0,83516.0,0.0008436]
[1744457430818,1.04588819,83517.0,83516.0,0.0008436]
[1744457431198,1.05288819,83517.0,83516.0,0.0018436]
[1744457431939,1.06229827,83517.0,83516.0,0.0018436]
[1744457432292,1.06029827,83517.0,83516.0,0.0018436]
[1744457432496,1.06529827,83517.0,83516.0,0.0018436]
[1744457435129,2.29773827,83517.0,83516.0,0.0018436]
[1744457435552,2.71653827,83517.0,83516.0,0.0018436]
[1744457458628,2.62053827,83517.0,83516.0,0.0018436]
[1744457459189,2.75541827,83517.0,83516.0,0.0018436]
[1744457470154,2.87614675,83517.0,83516.0,6e-07]
[1744457470345,2.97706973,83517.0,83516.0,6e-07]
[1744457470545,3.01074102,83517.0,83516.0,6e-07]
[1744457471178,2.97706973,83517.0,83516.0,6e-07]
[1744457471378,2.8708821,83517.0,83516.0,6e-07]
[1744457471595,2.9637821,83517.0,83516.0,6e-07]
[1744457471799,3.00368487,83517.0,83516.0,6e-07]
[1744457472402,0.239526,83498.0,83496.0,0.0008438]
[1744457472652,0.25572154,83497.0,83496.0,0.0008438]
[1744457472870,0.75672154,83497.0,83496.0,8e-07]
[1744457473011,1.15672154,83497.0,83496.0,8e-07]
[1744457473525,1.16580375,83497.0,83496.0,8e-07]
[1744457473847,1.71987308,83497.0,83496.0,8e-07]
[1744457474049,1.72487308,83497.0,83496.0,0.0010008]
[1744457474434,1.6041446,83497.0,83496.0,0.0010008]
[1744457474634,1.6081446,83497.0,83496.0,0.0010008]
[1744457475046,1.6031446,83497.0,83496.0,8e-07]
[1744457475444,1.6101446,83497.0,83496.0,0.0010008]
[1744457483398,1.59460375,83497.0,83496.0,0.0010008]
[1744457490121,1.05496221,83497.0,83496.0,0.0010008]
[1744457490378,1.05496221,83497.0,83496.0,0.0497008]
[1744457494463,0.92008221,83497.0,83496.0,0.0497008]
[1744457494603,1.05496221,83497.0,83496.0,0.0497008]
[1744457504737,1.05496221,83497.0,83496.0,4.0497008]
[1744457510662,1.05496221,83497.0,83496.0,4.0010008]
[1744457516690,0.92008221,83497.0,83496.0,4.0010008]
[1744457516918,1.05492221,83497.0,83496.0,4.0010008]
[1744457519603,0.92008221,83497.0,83496.0,4.0010008]
[1744457519802,1.05492221,83497.0,83496.0,4.0010008]
[1744457523504,0.92008221,83497.0,83496.0,4.0010008]
[1744457523703,1.05492221,83497.0,83496.0,4.0010008]
[1744457532391,0.92008221,83497.0,83496.0,4.0010008]
[1744457532712,1.05492221,83497.0,83496.0,4.0010008]
[1744457533470,0.92008221,83497.0,83496.0,4.0010008]
[1744457533673,1.05492221,83497.0,83496.0,4.0010008]
[1744457557469,0.89492221,83497.0,83496.0,4.0010008]
[1744457559050,1.01576375,83497.0,83496.0,4.0010008]
[1744457570631,1.17576375,83497.0,83496.0,4.0010008]
[1744457571197,1.04092375,83497.0,83496.0,4.0010008]
[1744457571405,1.17576375,83497.0,83496.0,4.0010008]
[1744457587692,1.19820994,83497.0,83496.0,4.0010008]
[1744457589389,1.17576375,83497.0,83496.0,4.0010008]
[1744457591314,1.19821062,83497.0,83496.0,4.0010008]
[1744457594430,1.17576375,83497.0,83496.0,4.0010008]
[1744457596780,1.19821211,83497.0,83496.0,4.0010008]
[1744457605387,0.94253057,83497.0,83496.0,4.0010008]
[1744457605523,1.07729057,83497.0,83496.0,4.0010008]
[1744457615006,0.94253057,83497.0,83496.0,4.0010008]
[1744457615180,1.07729057,83497.0,83496.0,4.0010008]
[1744457617761,1.05484221,83497.0,83496.0,4.0010008]
[1744457630547,0.89484221,83497.0,83496.0,4.0010008]
[1744457632524,1.04484221,83497.0,83496.0,4.0010008]
[1744457638940,1.04484221,83497.0,83496.0,4.0943008]
[1744457646673,1.04484221,83497.0,83496.0,4.0010008]
[1744457663973,1.16568375,83497.0,83496.0,4.0010008]
[1744457673565,1.16568375,83497.0,83496.0,4.0010008]
[1744457679470,1.04484221,83497.0,83496.0,4.0010008]
[1744457679785,0.91008221,83497.0,83496.0,4.0010008]
[1744457679930,1.04480221,83497.0,83496.0,4.0010008]
[1744457696733,1.16564375,83497.0,83496.0,4.0010008]
[1744457704059,1.01564375,83497.0,83496.0,4.0010008]
[1744457705896,1.26376523,83497.0,83496.0,2.4268688]
[1744457706102,1.7174846,83497.0,83496.0,1.06960258]
[1744457706306,1.82363778,83497.0,83496.0,0.91913158]
[1744457706552,0.001,83487.0,83486.0,4.3e-07]
[1744457706756,0.06114085,83482.0,83481.0,0.001156]
[1744457706973,0.84666239,83482.0,83481.0,0.001156]
[1744457707157,0.64072685,83477.0,83476.0,0.0008436]
[1744457707388,1.36036839,83477.0,83476.0,0.0008436]
[1744457707745,1.76036839,83477.0,83476.0,0.0008436]
[1744457707938,1.76048562,83477.0,83476.0,0.0008436]
[1744457708360,1.76048562,83477.0,83476.0,0.0018436]
[1744457708683,1.76948562,83477.0,83476.0,0.0018436]
[1744457709576,1.76848562,83477.0,83476.0,0.0018436]
[1744457710407,1.77348562,83477.0,83476.0,0.0018436]
[1744457710683,1.72888562,83477.0,83476.0,0.0018436]
[1744457714150,1.71334477,83477.0,83476.0,0.0018436]
[1744457718171,2.94654477,83477.0,83476.0,0.0018436]
[1744457718570,2.96108562,83477.0,83476.0,0.0018436]
[1744457718725,3.01188562,83477.0,83476.0,0.0018436]
[1744457720052,3.00688562,83477.0,83476.0,0.0018436]
[1744457720293,2.99788562,83477.0,83476.0,0.0008436]
[1744457720470,3.1186141,83477.0,83476.0,0.0008436]
[1744457720673,3.1296141,83477.0,83476.0,0.0008436]
[1744457721215,3.28953708,83477.0,83476.0,6e-07]
[1744457721682,3.27453708,83477.0,83476.0,6e-07]
[1744457721875,3.27453708,83477.0,83459.0,0.0008436]
[1744457721876,0.59516785,83463.0,83459.0,0.0008436]
[1744457721996,1.08056939,83463.0,83459.0,0.0008436]
[1744457722354,1.49936939,83463.0,83459.0,0.0008436]